lending/lending_fUSD_20240124
["ID","MTS","AMOUNT","RATE_DAILY","PERIOD"]
[312615042,1706089844932,-906.25999723,0.00034672,7]
[312615043,1706089844943,-2708.46000277,0.00034672,7]
[312615044,1706089844954,-324.83345453,0.00034672,7]
[312615045,1706089844966,-1264.11431833,0.00034672,7]
[312615046,1706089844975,-3824.73482647,0.00034672,7]
[312615047,1706089844984,-1972.47655432,0.00034672,7]
[312615048,1706089844994,-1000.0,0.00034672,7]
[312615049,1706089845003,-677.36358581,0.00034672,7]
[312615050,1706089845013,-2270.80254256,0.00034672,7]
[312615051,1706089845022,-3160.80426994,0.00034672,7]
[312615052,1706089845032,-150.0,0.000347,23]
[312615053,1706089845043,-151.0124,0.00034798,6]
[312615054,1706089845054,-646.11,0.00034904,2]
[312615055,1706089845063,-468.0,0.00035,5]
[312615056,1706089845073,-23525.96512555,0.00035,2]
[312615057,1706089845083,-155.0,0.00035,2]
[312615058,1706089845092,-200.0,0.00035,5]
[312615059,1706089845101,-150.0,0.00035,11]
[312615060,1706089845111,-2209.29685772,0.00035015,7]
[312615061,1706089845121,-1303.95807636,0.00035047,2]
[312615062,1706089845131,-151.0124,0.00035198,6]
[312615063,1706089845140,-175.484273,0.000352,24]
[312615064,1706089845149,-4913.83838509,0.00035414,2]
[312615065,1706089845159,-1782.66,0.00035452,5]
[312615066,1706089845167,-1303.95807636,0.00035529,2]
[312615067,1706089845177,-3013.92430134,0.0003565,2]
[312615068,1706089845187,-151.0124,0.00035798,6]
[312615069,1706089845199,-364.61,0.00035852,2]
[312615070,1706089845208,-1490.0,0.000359,12]
[312615071,1706089845217,-6029.68,0.000359,3]
[312615072,1706089845226,-519.87357895,0.000359,2]
[312615073,1706089845235,-176.72,0.00035981,2]
[312615074,1706089845245,-1727.74980843,0.00035998,4]
[312615075,1706089845254,-460.64912571,0.00035998,4]
[312615076,1706089845264,-583.13958922,0.00035998,4]
[312615077,1706089845275,-906.52023967,0.00035998,4]
[312615078,1706089845284,-155.01373286,0.00035999,4]
[312615079,1706089845294,-145618.75719492,0.00036,2]
[312615080,1706089845326,-1153.25799577,0.00036,2]
[312615081,1706089845337,-548.38250217,0.00036,2]
[312615082,1706089845825,-1192.9975616,0.00036,2]
[312615083,1706089845837,-1059.87234724,0.00036,2]
[312615084,1706089845848,-1367.80188262,0.00036,2]
[312615085,1706089845864,-5512.38230237,0.00036,2]
[312615086,1706089845892,-719.8627356,0.00036,2]
[312615087,1706089845903,-409.79455518,0.00036,2]
[312615088,1706089845914,-273.14232142,0.00036,2]
[312615089,1706089845925,-298.20287512,0.00036,2]
[312615090,1706089845936,-8328.20316958,0.00036,2]
[312615091,1706089845947,-541.88479081,0.00036,2]
[312615092,1706089845959,-600.02619236,0.00036,2]
[312615093,1706089845970,-3811.76668529,0.00036,2]
[312615094,1706089846000,-2291.63766689,0.00035853,14]
[312615095,1706089846009,-778.00122395,0.00036,2]
[312615096,1706089846036,-188070.89413156,0.00036,2]
[312615097,1706089846046,-1062.65437482,0.00036,2]
[312615098,1706089846055,-1000.0,0.00036,6]
[312615099,1706089846065,-157.41254719,0.00036,30]
[312615100,1706089846074,-190.67528124,0.00036,2]
[312615101,1706089846083,-629.95570753,0.00036,2]
[312615102,1706089846093,-255.0,0.00036,2]
[312615103,1706089846102,-200.0,0.00036,2]
[312615104,1706089846111,-2000.0,0.00036,2]
[312615105,1706089846120,-200.0,0.00036,2]
[312615107,1706089846130,-576.23555824,0.00036,2]
[312615109,1706089846139,-571.42289537,0.00036,2]
[312615111,1706089846148,-613.515589,0.00036,4]
[312615112,1706089846157,-3000.0,0.00036,2]
[312615113,1706089846166,-1800.0,0.00036,7]
[312615114,1706089846175,-200.0,0.00036,2]
[312615115,1706089846184,-1303.95807636,0.0003601,2]
[312615117,1706089846194,-150.5028507,0.00036028,2]
[312615119,1706089846205,-236.31,0.00036094,2]
[312615121,1706089846214,-151.0124,0.00036198,8]
[312615123,1706089846223,-1000.0,0.00036313,2]
[312615125,1706089846233,-2209.29685772,0.0003633,7]
[312615127,1706089846242,-2000.0,0.0003636,2]
[312615129,1706089846251,-200.0,0.0003636,2]
[312615131,1706089846261,-1303.95807636,0.00036492,2]
[312615133,1706089846270,-151.0124,0.00036498,8]
[312615135,1706089846280,-915.0,0.00036565,3]
[312615137,1706089846291,-1275.68,0.00036613,15]
[312615138,1706089846300,-182.0,0.00036664,2]
[312615139,1706089846310,-186.0,0.00036664,2]
[312615140,1706089846320,-184.0,0.00036666,2]
[312615141,1706089846330,-151.0124,0.00036798,8]
[312615142,1706089846340,-1303.95807636,0.00036973,2]
[312615143,1706089846352,-162.93943754,0.00036997,2]
[312615144,1706089846361,-100000.0,0.00037,17]
[312615145,1706089846372,-309.88993385,0.00037,4]
[312615146,1706089846382,-700.0,0.00037,2]
[312615147,1706089846393,-4719.54258201,0.00037,7]
[312615148,1706089846402,-40000.0,0.00037,4]
[312615149,1706089846411,-460.74964234,0.00037,14]
[312615150,1706089846421,-750.0,0.00037,3]
[312615151,1706089846430,-613.515589,0.00037,5]
[312615152,1706089846439,-521.0,0.00037,2]
[312615153,1706089846448,-12352.0,0.00037,2]
[312615154,1706089846456,-553.25,0.00037,7]
[312615155,1706089846466,-151.0124,0.00037198,8]
[312615156,1706089846475,-1303.95807636,0.00037455,2]
[312615157,1706089846484,-6000.0,0.00037463,7]
[312615158,1706089846494,-435.96771118,0.00037468,4]
[312615159,1706089846503,-364.61,0.00037496,2]
[312615160,1706089846512,-151.0124,0.00037498,8]
[312615161,1706089846522,-282.0,0.00037598,30]
[312615162,1706089846531,-151.0,0.00037598,30]
[312615163,1706089846540,-151.0,0.00037598,30]
[312615164,1706089846553,-151.0,0.00037598,30]
[312615165,1706089846562,-151.0,0.00037598,30]
[312615166,1706089846572,-151.0,0.00037598,30]
[312615167,1706089846581,-151.0,0.00037598,30]
[312615168,1706089846590,-151.0,0.00037598,30]
[312615169,1706089846600,-151.0,0.00037598,30]
[312615170,1706089846609,-151.0,0.00037598,30]
[312615171,1706089846619,-151.0,0.00037598,30]
[312615172,1706089846628,-151.0,0.00037598,30]
[312615173,1706089846637,-151.0,0.00037598,30]
[312615174,1706089846647,-151.0,0.00037598,30]
[312615175,1706089846656,-151.0,0.00037598,30]
[312615176,1706089846667,-151.0,0.00037598,30]
[312615177,1706089846678,-151.0,0.00037598,30]
[312615178,1706089846687,-151.0,0.00037598,30]
[312615179,1706089846696,-151.0,0.00037598,30]
[312615180,1706089846706,-151.0,0.00037598,30]
[312615181,1706089846715,-2209.29685772,0.00037645,8]
[312615182,1706089846725,-500.0,0.00037693,3]
[312615183,1706089846735,-151.6116254,0.000377,2]
[312615184,1706089846744,-500.0,0.00037702,3]
[312615185,1706089846753,-500.0,0.00037706,3]
[312615186,1706089846763,-160.0,0.00037711,3]
[312615187,1706089846773,-500.0,0.00037711,3]
[312615188,1706089846782,-500.0,0.00037715,3]
[312615189,1706089846792,-500.0,0.00037723,3]
[312615190,1706089846803,-500.0,0.00037732,3]
[312615191,1706089846813,-5000.0,0.0003775,3]
[312615192,1706089846822,-1575.36822247,0.00037797,3]
[312615193,1706089846831,-151.0124,0.00037798,8]
[312615194,1706089846841,-690.50673555,0.00037799,11]
[312615195,1706089846851,-2000.0,0.000378,4]
[312615196,1706089846861,-500.0,0.00037841,3]
[312615197,1706089846870,-500.0,0.0003785,3]
[312615198,1706089846880,-500.0,0.00037858,3]
[312615199,1706089846890,-500.0,0.00037867,3]
[312615200,1706089846901,-7480.8775114,0.00037899,2]
[312615201,1706089846911,-4346.08678097,0.00037899,2]
[312615202,1706089846921,-1843.53068034,0.00037899,2]
[312615203,1706089846931,-1507.65735819,0.00037899,2]
[312615204,1706089847448,-177.22459551,0.000249,2]
[312615205,1706089847458,-233.99272804,0.00033799,4]
[312615206,1706089847473,-174.20257814,0.00033799,4]
[312615207,1706089847483,-561.99479902,0.00033799,2]
[312615208,1706089847494,-520.27750325,0.00033799,2]
[312615209,1706089847517,-173.59042152,0.00033799,2]
[312615210,1706089847526,-478.79052446,0.00037899,2]
[312615211,1706089847581,-1467.87505136,0.00037899,2]
[312615212,1706089847623,-1267.8566769,0.00037899,2]
[312615213,1706089847633,-150.1,0.000379,2]
[312615214,1706089847642,-1499.11523399,0.000379,3]
[312615276,1706091031387,-3191.74123019,0.00022079,2]
[312615277,1706091031397,-160.10390265,0.00022888,2]
[312615278,1706091031407,-632.96450756,0.000229,2]
[312615279,1706091031417,-151.66898382,0.000229,2]
[312615280,1706091031426,-1104.64842886,0.000229,2]
[312615281,1706091031435,-688.09521181,0.000229,2]
[312615282,1706091031445,-31642.24987769,0.00023,2]
[312615283,1706091031577,-4374.14065099,0.00023,2]
[312615291,1706091037944,-813.24240312,0.00023,2]
[312615301,1706091038575,-2350.23387264,0.00023,2]
[312615302,1706091038587,-323.17875603,0.00023,2]
[312615303,1706091038623,-688.09521181,0.00023,2]
[312615304,1706091038652,-988.1124804,0.00023,2]
[312615305,1706091038676,-591268.77481007,0.00023,2]
[312615306,1706091038685,-527914.35434355,0.00023,2]
[312615307,1706091038694,-150.0,0.00023,2]
[312615308,1706091038703,-201.3561641,0.00024,2]
[312615309,1706091038713,-151.6689836,0.0002427,2]
[312615310,1706091038722,-632.96450753,0.00024422,2]
[312615311,1706091038732,-1585.88267064,0.00025,2]
[312615312,1706091038741,-202.25724593,0.00025,2]
[312615313,1706091038750,-934.72068442,0.00025,2]
[312615314,1706091038759,-167.57211184,0.00025,2]
[312615315,1706091038768,-2816.79030259,0.00025,2]
[312615316,1706091038778,-2809.38499747,0.00025,2]
[312615317,1706091038786,-280.7946203,0.00025,7]
[312615318,1706091038795,-450.0,0.00025,3]
[312615319,1706091039058,-1801.20226843,0.000251,2]
[312615320,1706091039068,-1104.64842886,0.00025292,2]
[312615321,1706091039078,-151.6689836,0.00025639,2]
[312615322,1706091039087,-632.96450753,0.00025944,2]
[312615323,1706091039096,-4177.56962069,0.00026,2]
[312615324,1706091039105,-500.0,0.00026,2]
[312615325,1706091039115,-500.0,0.00027,3]
[312615326,1706091039124,-151.6689836,0.00027009,2]
[312615327,1706091039133,-632.96450753,0.00027466,2]
[312615329,1706091039142,-1104.64842886,0.00027684,3]
[312615331,1706091039152,-415.0,0.00027867,5]
[312615333,1706091039161,-151.6689836,0.00028378,2]
[312615335,1706091039171,-534.63009096,0.00028425,2]
[312615337,1706091039180,-632.96450753,0.00028988,2]
[312615340,1706091039190,-314.61792294,0.00029,2]
[312615342,1706091039199,-326.71167735,0.00029,2]
[312615344,1706091039208,-550.0,0.00029,3]
[312615345,1706091039217,-400.0,0.00029426,2]
[312615346,1706091039226,-244.33,0.00029551,2]
[312615347,1706091039235,-167.92,0.00029599,2]
[312615348,1706091039244,-200.0,0.0002961,2]
[312615349,1706091039254,-23900.0,0.00029637,2]
[312615350,1706091039262,-431.51,0.00029664,2]
[312615351,1706091039272,-600.0,0.00029668,2]
[312615352,1706091039281,-185.03,0.00029712,2]
[312615353,1706091039290,-166.93,0.00029726,2]
[312615354,1706091039300,-151.6689836,0.00029748,2]
[312615355,1706091039309,-175.70189121,0.000298,2]
[312615356,1706091039318,-2000.0,0.00029804,2]
[312615357,1706091039327,-250.0,0.00029897,2]
[312615358,1706091039336,-925.75,0.00029919,2]
[312615359,1706091039345,-4652.70418125,0.0002996,2]
[312615360,1706091039355,-2500.0,0.0003,2]
[312615361,1706091039364,-3635.22551804,0.0003,4]
[312615362,1706091039373,-1104.64842886,0.00030076,4]
[312615363,1706091039383,-2939.82528793,0.000301,2]
[312615364,1706091039392,-5000.0,0.00030446,2]
[312615365,1706091039401,-632.96450753,0.0003051,2]
[312615366,1706091039410,-431.51,0.00030762,2]
[312615367,1706091039419,-600.0,0.00031,3]
[312615368,1706091039428,-151.6689836,0.00031117,2]
[312615369,1706091039437,-167.92,0.00031243,2]
[312615370,1706091039447,-4616.01536233,0.0003143,4]
[312615371,1706091039456,-431.51,0.00031859,2]
[312615372,1706091039464,-632.96450753,0.00032033,3]
[312615373,1706091039473,-12209.55,0.00032346,2]
[312615374,1706091039482,-1104.64842886,0.00032467,6]
[312615375,1706091039491,-151.6689836,0.00032487,2]
[312615376,1706091039500,-202.19184908,0.000325,2]
[312615377,1706091039509,-155.07,0.00032583,2]
[312615378,1706091039518,-180.0,0.00032627,2]
[312615379,1706091039528,-185.03,0.00032683,2]
[312615380,1706091039537,-195.59371153,0.000327,2]
[312615381,1706091039546,-195.59371145,0.000327,2]
[312615382,1706091039556,-195.59371145,0.000327,2]
[312615383,1706091039566,-195.59371145,0.000327,2]
[312615384,1706091039578,-195.59371145,0.000327,2]
[312615385,1706091039587,-195.59371145,0.000327,2]
[312615386,1706091039596,-195.59371145,0.000327,2]
[312615387,1706091039606,-195.59371145,0.000327,2]
[312615388,1706091039614,-195.59371145,0.000327,2]
[312615389,1706091039623,-195.59371145,0.000327,2]
[312615390,1706091039632,-195.59371145,0.000327,2]
[312615391,1706091039641,-1063.06,0.00032877,15]
[312615392,1706091039650,-167.92,0.00032887,2]
[312615393,1706091039660,-431.51,0.00032957,2]
[312615394,1706091039669,-650.0,0.00033,3]
[312615395,1706091039678,-400.0,0.00033104,2]
[312615396,1706091039687,-221.59,0.00033317,2]
[312615398,1706091039696,-600.0,0.00033377,2]
[312615399,1706091039705,-1003.84486943,0.0003346,2]
[312615401,1706091039714,-632.96450753,0.00033555,5]
[312615403,1706091039723,-4061.31,0.000338,2]
[312615405,1706091039733,-4061.31,0.000338,2]
[312615407,1706091039742,-4061.31,0.000338,2]
[312615409,1706091039751,-4061.31,0.000338,2]
[312615411,1706091039760,-4061.31,0.000338,2]
[312615413,1706091039769,-4061.31,0.000338,2]
[312615415,1706091039778,-4061.31,0.000338,2]
[312615417,1706091039787,-4061.31,0.000338,2]
[312615419,1706091039796,-4061.31,0.000338,2]
[312615421,1706091039806,-4061.31,0.000338,2]
[312615424,1706091039815,-4061.31,0.000338,2]
[312615425,1706091039824,-4061.31,0.000338,2]
[312615427,1706091039833,-4061.31,0.000338,2]
[312615429,1706091039842,-4061.31,0.000338,2]
[312615430,1706091039851,-4061.31,0.000338,2]
[312615432,1706091039861,-4061.31,0.000338,2]
[312615434,1706091039870,-4061.31,0.000338,2]
[312615436,1706091039879,-4061.31,0.000338,2]
[312615438,1706091039888,-4061.31,0.000338,2]
[312615440,1706091039897,-4061.31,0.000338,2]
[312615442,1706091039907,-158.17,0.000338,2]
[312615444,1706091039917,-158.17,0.000338,2]
[312615445,1706091039928,-152.83,0.000338,2]
[312615446,1706091039937,-152.83,0.000338,2]
[312615447,1706091039946,-152.83,0.000338,2]
[312615448,1706091039958,-151.6689836,0.00033857,2]
[312615449,1706091039968,-1000.0,0.00034,4]
[312615450,1706091039978,-6209.59115552,0.00034,2]
[312615451,1706091039989,-431.51,0.00034055,2]
[312615452,1706091040000,-5000.0,0.0003409,2]
[312615453,1706091040009,-167.92,0.00034531,2]
[312615454,1706091040019,-4708.34179587,0.00034672,7]
[312615455,1706091040029,-1000.0,0.00034672,7]
[312615456,1706091040039,-500.0,0.00034672,3]
[312615457,1706091040049,-1137.61444944,0.00034672,7]
[312615458,1706091040058,-1000.0,0.00034672,7]
[312615459,1706091040068,-1000.0,0.00034672,7]
[312615460,1706091040078,-542.80438988,0.00034672,7]
[312615461,1706091040088,-500.0,0.00034672,7]
[312615462,1706091040098,-1890.14993821,0.00034672,7]
[312615463,1706091040107,-1000.0,0.00034672,7]
[312615464,1706091040117,-1104.64842886,0.00034859,7]
[312615465,1706091040127,-519.87357888,0.000349,2]
[312615466,1706091040137,-519.87357888,0.000349,2]
[312615467,1706091040148,-519.87357888,0.000349,2]
[312615468,1706091040159,-519.87357888,0.000349,2]
[312615469,1706091040168,-519.87357888,0.000349,2]
[312615470,1706091040178,-1736.82201563,0.0003499,2]
[312615471,1706091040187,-155.0,0.00035,2]
[312615472,1706091040197,-16468.17558788,0.00035,2]
[312615473,1706091040206,-1036.0,0.00035,30]
[312615474,1706091040215,-700.0,0.00035,3]
[312615475,1706091040225,-632.96450753,0.00035077,7]
[312615476,1706091040234,-1000.0,0.000351,2]
[312615477,1706091040243,-151.6689836,0.00035226,2]
[312615478,1706091040253,-555.0124,0.00035498,6]
[312615479,1706091040262,-1783.41,0.00035532,5]
[312615480,1706091040272,-221.59,0.0003558,2]
[312615481,1706091040281,-200.0,0.000356,2]
[312615482,1706091040290,-4913.83838509,0.0003564,2]
[312615483,1706091040300,-185.03,0.00035654,2]
[312615484,1706091040310,-1807.94,0.00035658,5]
[312615485,1706091040318,-555.0124,0.00035798,6]
[312615486,1706091040328,-1490.0,0.000359,12]
[312615487,1706091040336,-150.62584723,0.0003591,5]
[312615488,1706091040346,-76850.194353,0.00036,2]
[312615489,1706091040355,-1838.87,0.00036092,5]
[312615490,1706091040364,-167.92,0.00036175,2]
[312615491,1706091040374,-555.0124,0.00036198,6]
[312615492,1706091040383,-1805.82,0.0003625,5]
[312615493,1706091040393,-555.0124,0.00036498,6]
[312615494,1706091040402,-151.6689836,0.00036596,2]
[312615495,1706091040411,-632.96450753,0.00036599,9]
[312615496,1706091040421,-1063.06,0.00036613,15]
[312615497,1706091040430,-207.0,0.00036664,2]
[312615498,1706091040440,-400.0,0.00036783,2]
[312615499,1706091040449,-555.0124,0.00036798,6]
[312615500,1706091040458,-700.0,0.00037,2]
[312615501,1706091040467,-310.28731185,0.00037,4]
[312615502,1706091040476,-750.0,0.00037,3]
[312615503,1706091040485,-5632.58,0.00037,3]
[312615504,1706091040494,-600.0,0.00037085,2]
[312615505,1706091040503,-555.0124,0.00037098,8]
[312615506,1706091040512,-276.63,0.000371,7]
[312615507,1706091040522,-555.0124,0.00037198,8]
[312615508,1706091040531,-1104.64842886,0.00037251,8]
[312615509,1706091040541,-555.0124,0.00037298,8]
[312615510,1706091040550,-555.0124,0.00037398,8]
[312615511,1706091040562,-2000.0,0.00037498,4]
[312615512,1706091040572,-555.0124,0.00037498,8]
[312615513,1706091040583,-396.39203863,0.00037519,2]
[312615514,1706091040594,-170.31424112,0.00037561,4]
[312615515,1706091040605,-256.69655446,0.00037561,4]
[312615516,1706091040614,-566.30060069,0.00037562,2]
[312615517,1706091040624,-296.09469979,0.00037562,2]
[312615518,1706091040637,-555.0124,0.00037598,8]
[312615519,1706091040646,-500.0,0.00037673,3]
[312615520,1706091040655,-500.0,0.00037682,3]
[312615521,1706091040666,-500.0,0.0003769,3]
[312615522,1706091040675,-150.0,0.00037692,2]
[312615523,1706091040685,-555.0124,0.00037698,8]
[312615524,1706091040695,-500.0,0.00037699,3]
[312615525,1706091040707,-13424.63177753,0.000377,3]
[312615526,1706091040716,-500.0,0.00037708,3]
[312615527,1706091040726,-500.0,0.00037717,3]
[312615528,1706091040736,-500.0,0.00037726,3]
[312615531,1706091040745,-13456.16657792,0.00037797,3]
[312615534,1706091040754,-555.0124,0.00037798,8]
[312615536,1706091040763,-1000.0,0.000378,2]
[312615538,1706091040772,-968.68549554,0.000378,2]
[312615540,1706091040782,-346.3013372,0.000378,2]
[312615542,1706091040790,-334.21369866,0.000378,2]
[312615544,1706091040800,-167.92,0.00037818,2]
[312615545,1706091040809,-221.59,0.00037844,2]
[312615546,1706091040818,-174.55009017,0.00037895,5]
[312615547,1706091040827,-162.93943754,0.00037897,2]
[312615548,1706091040837,-501.99094937,0.00037898,4]
[312615549,1706091040846,-555.0124,0.00037898,8]
[312615550,1706091040856,-243.76318213,0.00037899,2]
[312615551,1706091040868,-14355.38710004,0.00037899,2]
[312615552,1706091040877,-56382.81594768,0.00037899,7]
[312615561,1706091043157,-195.59371145,0.000327,2]
[312615562,1706091043166,-253.2888996,0.00037899,7]
[312615563,1706091043179,-3065.82623028,0.00037899,7]
[312615564,1706091043190,-5474.74798402,0.00037899,7]
[312615565,1706091043227,-53872.39620373,0.00037899,7]
[312615566,1706091043241,-286.78736376,0.00037899,7]
[312615567,1706091043253,-10062.47870085,0.00037899,7]
[312615585,1706091045522,-3614.84522622,0.00037899,7]
[312615586,1706091045575,-275.07766464,0.00037899,7]
[312615587,1706091045803,-2554.9731492,0.00037899,7]
[312615663,1706092234067,-150.0,0.00023,2]
[312615664,1706092234078,-450.0,0.00025,3]
[312615665,1706092234087,-167.57211184,0.00025,2]
[312615666,1706092234098,-162.31448216,0.00025,2]
[312615677,1706092238656,-772.40620226,0.00025,2]
[312615678,1706092238666,-1585.88267064,0.00025,2]
[312615679,1706092238675,-202.25724593,0.00025992,2]
[312615680,1706092238685,-1463.58157935,0.00026,2]
[312615681,1706092238715,-1605.78,0.00026,2]
[312615682,1706092238896,-785.63842065,0.00026,2]
[312615683,1706092238905,-196.93557935,0.00026,2]
[312615684,1706092238919,-433.63771,0.00026,2]
[312615685,1706092238932,-2003.3,0.00026,2]
[312615691,1706092240748,-1006.9437697,0.00026,2]
[312615692,1706092240761,-499.75268625,0.00026,2]
[312615693,1706092240774,-468.45299402,0.00026,2]
[312615694,1706092240811,-20068.0,0.00026,2]
[312615695,1706092240874,-307.46014093,0.00026,2]
[312615696,1706092240887,-644.77640894,0.00026,2]
[312615755,1706092248210,-2082.36866725,0.00026,2]
[312615758,1706092248434,-322.70606991,0.00026,2]
[312615773,1706092425622,-279.51904402,0.00022999,2]
[312615774,1706092425643,-150.0,0.00023,2]
[312615779,1706092478764,150.0,0.00023,2]
[312615787,1706092601252,190.37,0.00023,2]
[312615868,1706093433912,-357.5997495,0.00025,3]
[312615869,1706093433974,-92.4002505,0.00025,3]
[312615870,1706093433983,-202.25724593,0.00025,2]
[312615871,1706093433993,-109.04250357,0.0002556,2]
[312615872,1706093434098,-662.3,0.0002556,2]
[312615873,1706093434109,-705.4799712,0.0002556,2]
[312615882,1706093439348,-257.84999975,0.00025,2]
[312615883,1706093439359,-676.87068467,0.00025,2]
[312615884,1706093439370,-109.06019587,0.0002556,2]
[312615885,1706093439379,-154.7329527,0.00025592,2]
[312615886,1706093439388,-370.64138861,0.000256,2]
[312615887,1706093439398,-150.0,0.00025637,2]
[312615888,1706093439407,-1367.53261135,0.00026,2]
[312615889,1706093439433,-634.28778256,0.00026,2]
[312615890,1706093439482,-835.84557974,0.00026,2]
[312615891,1706093439491,-200.0,0.00026,2]
[312615892,1706093439501,-2000.0,0.00026,2]
[312615893,1706093439510,-500.0,0.00026,2]
[312615894,1706093439519,-319.0,0.00026255,2]
[312615895,1706093439530,-508.0,0.00026255,2]
[312615896,1706093439539,-370.29,0.00026255,2]
[312615897,1706093439549,-500.0,0.00027,3]
[312615898,1706093439559,-172.37,0.00027397,2]
[312615899,1706093439568,-154.7329527,0.00027776,2]
[312615900,1706093439577,-150.99,0.00029,2]
[312615901,1706093439587,-550.0,0.00029,3]
[312615902,1706093439596,-172.37,0.00029224,2]
[312615903,1706093439605,-242.71,0.00029466,2]
[312615904,1706093439615,-175.70189121,0.000298,2]
[312615905,1706093439624,-154.7329527,0.00029961,2]
[312615906,1706093439633,-150.93519625,0.0003,2]
[312615907,1706093439643,-2500.0,0.0003,2]
[312615908,1706093439652,-3000.0,0.0003,2]
[312615909,1706093439661,-205.0,0.00030499,2]
[312615910,1706093439670,-201.1764,0.000309,2]
[312615911,1706093439681,-600.0,0.00031,3]
[312615912,1706093439690,-172.37,0.0003105,2]
[312615913,1706093439700,-4311.47798917,0.00031261,2]
[312615916,1706093440380,-370.64138861,0.00031261,2]
[312615921,1706093443323,-974.32618933,0.00031261,2]
[312615925,1706093443386,-18243.55443289,0.00031261,2]
[312615926,1706093443396,-244.33,0.00031291,2]
[312615927,1706093443405,-200.0,0.00031303,2]
[312615928,1706093443414,-2000.0,0.00031344,2]
[312615929,1706093443423,-9606.48274742,0.00031345,2]
[312615947,1706093443596,-1833.2625127,0.00031345,2]
[312615954,1706093443661,-769.80473988,0.00031345,2]
[312615956,1706093443670,-602.34,0.00031367,2]
[312615958,1706093443679,-227.41,0.00031389,2]
[312615960,1706093443688,-250.0,0.00031476,2]
[312615962,1706093443698,-925.75,0.00031496,2]
[312615964,1706093443707,-185.03,0.00031621,2]
[312615966,1706093443716,-161.83,0.0003172,2]
[312615968,1706093443724,-242.71,0.0003173,2]
[312615970,1706093443733,-1000.0,0.0003187,2]
[312615972,1706093443742,-161.83,0.00031956,2]
[312615974,1706093443751,-150.0,0.00032,2]
[312615975,1706093443761,-154.7329527,0.00032145,2]
[312615976,1706093443770,-161.83,0.00032192,2]
[312615977,1706093443781,-161.83,0.00032428,2]
[312615978,1706093443791,-3190.09672447,0.00032446,2]
[312615979,1706093443799,-207.08647447,0.00032527,14]
[312615980,1706093443809,-602.34,0.00032527,2]
[312615981,1706093443818,-155.89,0.0003254,2]
[312615982,1706093443827,-179.61,0.00032593,2]
[312615983,1706093443836,-161.83,0.00032665,2]
[312615984,1706093443845,-718.3129821,0.00032701,4]
[312615985,1706093443854,-150.01,0.00032777,2]
[312615986,1706093443863,-718.3129821,0.00032874,4]
[312615987,1706093443873,-1063.07,0.00032877,15]
[312615988,1706093443882,-172.37,0.00032877,2]
[312615989,1706093443892,-161.83,0.00032901,2]
[312615990,1706093443902,-650.0,0.00033,3]
[312615991,1706093443911,-227.41,0.00033032,2]
[312615992,1706093443920,-161.83,0.00033137,2]
[312615993,1706093443929,-1000.0,0.000332,2]
[312615994,1706093443938,-161.83,0.00033373,2]
[312615995,1706093443947,-602.34,0.00033688,2]
[312615996,1706093443956,-206.1563,0.000337,2]
[312615997,1706093443965,-745.6037,0.000337,2]
[312615998,1706093443974,-411.79322481,0.00033798,4]
[312615999,1706093443984,-1278.29489101,0.00033798,2]
[312616000,1706093443993,-27396.64572359,0.00033798,2]
[312616001,1706093444002,-335.10434607,0.00033798,4]
[312616002,1706093444011,-202.19184908,0.00033798,2]
[312616003,1706093444020,-1003.84486943,0.00033799,2]